Workbook

Sheet Timetable
B1: State: | C1: BELARUS
B2: File number:
B3: Title: | C3: Spring rire of 'Yurauski Karahod'
A4: Go to budget
C5: Year 1: | O5: Year 2: | AA5: Year 3:
A6: # | B6: Activities | C6: 1 | D6: 2 | E6: 3 | F6: 4 | G6: 5 | H6: 6 | I6: 7 | J6: 8 | K6: 9 | L6: 10 | M6: 11 | N6: 12 | O6: 1 | P6: 2 | Q6: 3 | R6: 4 | S6: 5 | T6: 6 | U6: 7 | V6: 8 | W6: 9 | X6: 10 | Y6: 11 | Z6: 12 | AA6: 1 | AB6: 2 | AC6: 3 | AD6: 4 | AE6: 5 | AF6: 6 | AG6: 7 | AH6: 8 | AI6: 9 | AJ6: 10 | AK6: 11 | AL6: 12
A8: =IF(B8="","",COUNTA(B$8:B20)-(COUNTA(B8:B20)-1)) -> 1 | B8: Management and coordination system
A9: =IF(B9="","",COUNTA(B$8:B21)-(COUNTA(B9:B21)-1)) -> 2 | B9: Start-up and final meetings
A10: =IF(B10="","",COUNTA(B$8:B22)-(COUNTA(B10:B22)-1)) -> 3 | B10: Mapping and inventorying of ICH in Turau area
A11: =IF(B11="","",COUNTA(B$8:B23)-(COUNTA(B11:B23)-1)) -> 4 | B11: Elaboration and publication of ICH Anthology of Turau area
A12: =IF(B12="","",COUNTA(B$8:B24)-(COUNTA(B12:B24)-1)) -> 5 | B12: Developing a safeguarding and revitalizatiion strategy of the Jurauski Karahod element
A13: =IF(B13="","",COUNTA(B$8:B25)-(COUNTA(B13:B25)-1)) -> 6 | B13: Running the ICH festival in Pahost villahe
A14: =IF(B14="","",COUNTA(B$8:B26)-(COUNTA(B14:B26)-1)) -> 7 | B14: The dissemination of information by media and social networks
A15: =IF(B15="","",COUNTA(B$8:B27)-(COUNTA(B15:B27)-1)) -> 8 | B15: Student's Folklore Summer School
A16: =IF(B16="","",COUNTA(B$8:B28)-(COUNTA(B16:B28)-1)) -> 9 | B16: Setting-up a Local Centre of Traditions in Pahost
A17: =IF(B17="","",COUNTA(B$8:B29)-(COUNTA(B17:B29)-1)) -> 10 | B17: Creating traditional costumes
A18: =IF(B18="","",COUNTA(B$8:B30)-(COUNTA(B18:B30)-1)) -> 11 | B18: Capacity building for local communities (4 workshops)
A19: =IF(B19="","",COUNTA(B$8:B31)-(COUNTA(B19:B31)-1)) -> 12 | B19: Summing-up and reporting
A20: =IF(B20="","",COUNTA(B$8:B32)-(COUNTA(B20:B32)-1)) -> 

Sheet Budget
A1: Go to timetable | F1: Exchange Rate | G1: Example
B2: TOTAL AMOUNT (in US$): | C2: =SUMIF($B:$B,"Sub-total:",C:C) -> 87760.5 | D2: =SUMIF($B:$B,"Sub-total:",D:D) -> 4009 | E2: =SUMIF($B:$B,"Sub-total:",E:E) -> 9780 | F2: =SUMIF($B:$B,"Sub-total:",F:F) -> 101549.5
B3: Percentage of the total amount: | C3: =IFERROR($C$2/$F$2,"") -> 0.864214004 | D3: =IFERROR($D$2/$F$2,"") -> 0.03947828399 | E3: =IFERROR($E$2/$F$2,"") -> 0.096307712 | F3: =IFERROR($F$2/$F$2,"") -> 1
A4: Activity: (indicate the activity and the type of expenditure) | B4: Description: (give full details of calculations) | C4: ICH Fund (in US$) | D4: State Party (in US$) | E4: Others (in US$) | F4: Total (in US$) | G4: Additional comments
A5: Management and coordination system | B5: Sub-total: | C5: =SUBTOTAL(9,C6:C6) -> 0 | D5: =SUBTOTAL(9,D6:D6) -> 0 | E5: =SUBTOTAL(9,E6:E6) -> 0 | F5: =SUBTOTAL(9,F6:F6) -> 0
A6: It is provided by the project team, including specialists and consultants (51-56 lines of the budget) and through the use of local experts and volunteers | C6: 0 | D6: 0 | E6: 0 | F6: =SUM(C6:E6) -> 0
A7: Start-up and final meetings | B7: Sub-total: | C7: =SUBTOTAL(9,C8:C10) -> 980 | D7: =SUBTOTAL(9,D8:D10) -> 0 | E7: =SUBTOTAL(9,E8:E10) -> 120 | F7: =SUBTOTAL(9,F8:F10) -> 1100
A8: Rent a room / Rental venue | B8: Rent of venue for 50 paricipants. 2 meetings x 4 hours x 15 $ a hour | C8: 0 | D8: 0 | E8: 120 | F8: =SUM(C8:E8) -> 120 | G8: Provided by local authority
A9: Hospitality | B9: Coffee -breaks (2) for 50 participants x 5$ | C9: 500 | D9: 0 | E9: 0 | F9: =SUM(C9:E9) -> 500 | G9: Estimation: 5$ for a person
A10: Travel expenses for experts | B10: Per diem for 4 experts (Minsk-Pahost-Turau-Minsk x 2 days x 60 $ (including transportations | C10: 480 | D10: 0 | E10: 0 | F10: =SUM(C10:E10) -> 480
A11: Mapping and inventorying of ICH in Turau area | B11: Sub-total: | C11: =SUBTOTAL(9,C12:C12) -> 3840 | D11: =SUBTOTAL(9,D12:D12) -> 0 | E11: =SUBTOTAL(9,E12:E12) -> 0 | F11: =SUBTOTAL(9,F12:F12) -> 3840
A12: Travel expenses (around Turau area, 300 km), expedition | B12: Rent of bus for 12 participants, 8 days (100$ per day (8 hours) = 800$; Accomodation (8 persons x 7 days x 20$)= 1120$; Per diem (12 persons x 8 days x 20%)=1920$ | C12: 3840 | D12: 0 | E12: 0 | F12: =SUM(C12:E12) -> 3840 | G12: 8 participants -experts + 4 local representatives
A13: Elaboration and publication of ICH Anthology of Turau area | B13: Sub-total: | C13: =SUBTOTAL(9,C14:C15) -> 7100 | D13: =SUBTOTAL(9,D14:D15) -> 0 | E13: =SUBTOTAL(9,E14:E15) -> 0 | F13: =SUBTOTAL(9,F14:F15) -> 7100
A14: Processing of material, including mapping, compilation and editing of text, design and layout of the publication | B14: Fees for proceccing materials and text compilation and editing (500 $), mapping (300$), design and layout - 1200$ | C14: 2000 | D14: 0 | E14: 0 | F14: =SUM(C14:E14) -> 2000 | G14: Survey price
A15: Printing the edition | B15: Printing service, 100 pages, 300 copies x 17$ | C15: 5100 | D15: 0 | E15: 0 | F15: =SUM(C15:E15) -> 5100 | G15: 12 $ for one copy of the edition
A16: Running the ICH festival in Pahost villahe | B16: Sub-total: | C16: =SUBTOTAL(9,C17:C21) -> 20000 | D16: =SUBTOTAL(9,D17:D21) -> 2000 | E16: =SUBTOTAL(9,E17:E21) -> 4000 | F16: =SUBTOTAL(9,F17:F21) -> 26000
A17: Meals for participants, 300 persons (musicians, creftsmen, students) | B17: 300 persons x 25 $ x 2 days | C17: 15000 | D17: 0 | E17: 0 | F17: =SUM(C17:E17) -> 15000
A18: Awards for ICH bearers | B18: 10 awards x 50$ in average | C18: 500 | D18: 0 | E18: 0 | F18: =SUM(C18:E18) -> 500
A19: Leaflet of the festival | B19: 500 copies x 3$ | C19: 1500 | D19: 0 | E19: 0 | F19: =SUM(C19:E19) -> 1500 | G19: Promotional leaflet with the festival programme
A20: Accommodation of paricipants | B20: 300 persons x 20 $ x 1 day | C20: 3000 | D20: 2000 | E20: 1000 | F20: =SUM(C20:E20) -> 6000 | G20: Partly provided by the Ministry of culture and local authority and sponsors
A21: Organizational expenses | B21: Organization of place, equipment, decoration, human recourses | C21: 0 | D21: 0 | E21: 3000 | F21: =SUM(C21:E21) -> 3000 | G21: Provided by local authority and sponsors
A22: The dissemination of information by media and social networks | B22: Sub-total: | C22: =SUBTOTAL(9,C23:C25) -> 1900 | D22: =SUBTOTAL(9,D23:D25) -> 2000 | E22: =SUBTOTAL(9,E23:E25) -> 0 | F22: =SUBTOTAL(9,F23:F25) -> 3900
A23: Articles in national, regional and local press | B23: 4 articles x 100$ for article | C23: 400 | D23: 0 | E23: 0 | F23: =SUM(C23:E23) -> 400
A24: TV programmes | B24: 2 TV programmes created x 1000$ | C24: 0 | D24: 2000 | E24: 0 | F24: =SUM(C24:E24) -> 2000 | G24: Provided by Ministry of Culture
A25: Moderation of Turau Local Histort Museum' website and creation of a page about Pahost village ICH | B25: Elaboration of the design and soft (price for service - 1000 $, context of the mentioned page -- 500$) | C25: 1500 | D25: 0 | E25: 0 | F25: =SUM(C25:E25) -> 1500 | G25: In cooperation with local experts and local youth.
A26: Student's Folklore Summer School | B26: Sub-total: | C26: =SUBTOTAL(9,C27:C32) -> 9303 | D26: =SUBTOTAL(9,D27:D32) -> 0 | E26: =SUBTOTAL(9,E27:E32) -> 0 | F26: =SUBTOTAL(9,F27:F32) -> 9303
A27: Rent of bus (Minsk-Pahost-Minsk) | B27: Rent of bus for 20 students and 2 teachers (Minsk-Pahost-Minsk), 650 km x 0,46 cent = 299 $ | C27: 299 | D27: 0 | E27: 0 | F27: =SUM(C27:E27) -> 299
A28: Rent of bus for travel in area (2 days), local transport | B28: 2 days across area, 200 km x 0.46 cent = 92$ | C28: 184 | D28: 0 | E28: 0 | F28: 184 | G28: one-off trips with a fact-finding mission to neighboring towns and villages
A29: Meals | B29: 22 persons x 7 days x 25$ (a day) | C29: 3840 | D29: 0 | E29: 0 | F29: 3840
A30: Accommodation for paricipants | B30: 22 persons x 6 nights x 20$ | C30: 2640 | D30: 0 | E30: 0 | F30: 2640
A31: Lectures for students and local people (4) | B31: Fees for lectors (4 x 150$)+travel expenses for lectors (4 x 60$x 1 day) | C31: 840 | D31: 0 | E31: 0 | F31: 840
A32: Publication as a result of Student Summer School | B32: Preparing, layout and printing, 60 pages, 100 copies, 1 copy is 15$ | C32: 1500 | D32: 0 | E32: 0 | F32: 1500
A33: Setting-up a Local Centre of Traditions in Pahost | B33: Sub-total: | C33: =SUBTOTAL(9,C34:C41) -> 6130 | D33: =SUBTOTAL(9,D34:D41) -> 9 | E33: =SUBTOTAL(9,E34:E41) -> 5300 | F33: =SUBTOTAL(9,F34:F41) -> 11439
A34: Repair of premises for the opening of the center | B34: Service price: painting walls, including the cost of paint - $ 800; laminate flooring, including the cost of the material (100 sq. m. x 35 $ per 1 sq. m = 3500 $); painting the ceiling (100 sq. m. x 10 $ for 1 sq. m = 1000 $) | C34: 0 | D34: 0 | E34: 5300 | F34: =SUM(C34:E34) -> 5300 | G34: Provided for local authority resources and sponsorship
A35: Purchase of equipment: Photo camera Canon EQS 5D Body | B35: Average Price for Belarus | C35: 1200 | D35: 0 | E35: 0 | F35: 1200 | G35: This item is needed for organization of survey and for documenting
A36: Video-projector Epson MG 850HD, LCD, WXGA (1280x800) | B36: Average Price for Belarus | C36: 880 | D36: 0 | E36: 0 | F36: 880 | G36: This item is needed for organization of workshops
A37: Computer block | B37: Average Price for Belarus | C37: 880 | D37: 0 | E37: 0 | F37: 880 | G37: This item is needed for organization of workshops and for documenting
A38: Notebook HP ProBook 450G5 2RS03EA | B38: Average Price for Belarus | C38: 730 | D38: 0 | E38: 0 | F38: 730 | G38: This item is needed for organization of workshops and for documenting
A39: Screen CACTUS triscreen CS-PST-124x221 | B39: Average Price for Belarus | C39: 150 | D39: 0 | E39: 0 | F39: 150 | G39: This item is needed for organization of workshops
A40: Flip chart | B40: Average Price for Belarus | C40: 130 | D40: 0 | E40: 0 | F40: 130 | G40: This item is needed for organization of workshops
A41: Purchase of furniture for the center | B41: 1 big table for 30 places (450 $) 2 office desks (2 x 55 $), 30 chairs (30 x 45$) , 2 office chairs (2 x 45$) , 2 cabinets (2 x 80$) | C41: 2160 | D41: 9 | E41: 0 | F41: 2169 | G41: Needed for community metings and workshops
A42: Creating traditional costumes | B42: Sub-total: | C42: =SUBTOTAL(9,C43:C45) -> 6937.5 | D42: =SUBTOTAL(9,D43:D45) -> 0 | E42: =SUBTOTAL(9,E43:E45) -> 0 | F42: =SUBTOTAL(9,F43:F45) -> 6937.5
A43: Materials for costumes (textile, strings, etc.) | B43: for 15 costumes, 3,5 m for 1 costume x 15$ (for 1 m) | C43: 787.5 | D43: 0 | E43: 0 | F43: =SUM(C43:E43) -> 787.5
A44: Footwear | B44: 15 pairs of 60 dollars each | C44: 900 | D44: 0 | E44: 0 | F44: =SUM(C44:E44) -> 900
A45: Production of costumes | B45: 15 costumes x 350 $ | C45: 5250 | D45: 0 | E45: 0 | F45: =SUM(C45:E45) -> 5250 | G45: Price for craft work
A46: Capacity building for local community members (4 workshops) | B46: Sub-total: | C46: =SUBTOTAL(9,C47:C50) -> 4600 | D46: =SUBTOTAL(9,D47:D50) -> 0 | E46: =SUBTOTAL(9,E47:E50) -> 360 | F46: =SUBTOTAL(9,F47:F50) -> 4960
A47: Rent of venue | B47: Rent of venue for 30 paricipants. 4 workshops x 6 hours x 15 $ a hour | C47: 0 | D47: 0 | E47: 360 | F47: =SUM(C47:E47) -> 360 | G47: Provided by lical authority
A48: Per diem for 8 experts | B48: 8 experts x 4 days x 60$, including transportation | C48: 1920 | D48: 0 | E48: 0 | F48: =SUM(C48:E48) -> 1920
A49: Office supply | B49: 4 workshops x 70$ | C49: 280 | D49: 0 | E49: 0 | F49: =SUM(C49:E49) -> 280
A50: Meals for participants | B50: 30 persons x 20$ (coffee breaks and lunches) x 4 workshops | C50: 2400 | D50: 0 | E50: 0 | F50: =SUM(C50:E50) -> 2400
A51: Human resources for the implementation of the project. This team will be used for the elaboration of the Safeguading and Revitalisation Strategy for the Pahost village and providing monitoring mission | B51: Sub-total: | C51: =SUBTOTAL(9,C52:C57) -> 25320 | D51: =SUBTOTAL(9,D52:D57) -> 0 | E51: =SUBTOTAL(9,E52:E57) -> 0 | F51: =SUBTOTAL(9,F52:F57) -> 25320
A52: Project manager, 60% | B52: Fee:14 months x 600$ | C52: 8400 | D52: 0 | E52: 0 | F52: =SUM(C52:E52) -> 8400 | G52: Monthly rate for the project coordinator based on the average salary for this position. Employed part-time (50%)
A53: Specialist on community involvement, 40% | B53: Fee:9,6 months x 400$ | C53: 3840 | D53: 0 | E53: 0 | F53: 3840 | G53: Monthly rate for this position r based on the average salary for this position. Employed part-time- 40%)
A54: Specialist in ICH, 40% | B54: Fee: 9,6 months x 400$ | C54: 3840 | D54: 0 | E54: 0 | F54: 3840 | G54: Monthly rate for this position r based on the average salary for this position. Employed part-time- 40%)
A55: Specialist in local culture and crafts, 20% | B55: Fee: 4.8 months x 400$ | C55: 1920 | D55: 0 | E55: 0 | F55: 1920 | G55: Monthly rate for this position r based on the average salary for this position. Employed part-time- 20%)
A56: Specialist in local culture and crafts, 20% | B56: Fee: 4.8 months x 400$ | C56: 1920 | D56: 0 | E56: 0 | F56: 1920
A57: Financial manager, 50% | B57: Fee: 12 months x 450$ | C57: 5400 | D57: 0 | E57: 0 | F57: 5400 | G57: Monthly rate for this position r based on the average salary for this position. Employed part-time- 50%)
A58: Monitorying of the project | B58: Sub-total: | C58: =SUBTOTAL(9,C59:C59) -> 1350 | D58: =SUBTOTAL(9,D59:D59) -> 0 | E58: =SUBTOTAL(9,E59:E59) -> 0 | F58: =SUBTOTAL(9,F59:F59) -> 1350
A59: Travel expenses for the Project manager with monitorying mission | B59: Travel to and from the project site, use the technique at the field, 650 km (to and back), 10 km = 10$, 15 times x 65$ = 975$; per diem (15 days x 25 $ = 375 $) | C59: 1350 | D59: 0 | E59: 0 | F59: =SUM(C59:E59) -> 1350
A60: Administrative cost | B60: Sub-total: | C60: =SUBTOTAL(9,C61:C61) -> 300 | D60: =SUBTOTAL(9,D61:D61) -> 0 | E60: =SUBTOTAL(9,E61:E61) -> 0 | F60: =SUBTOTAL(9,F61:F61) -> 300
A61: Administrative expenses | B61: Bank expenses, payment for internet and mailing | C61: 300 | D61: 0 | E61: 0 | F61: =SUM(C61:E61) -> 300

Sheet Example
A1: Go to timetable | B1: TOTAL AMOUNT (in US$): | C1: =SUMIF($B:$B,"Sub-total:",C:C) -> 1000 | D1: =SUMIF($B:$B,"Sub-total:",D:D) -> 200 | E1: =SUMIF($B:$B,"Sub-total:",E:E) -> 900 | F1: =SUMIF($B:$B,"Sub-total:",F:F) -> 2100 | G1: Go to budget
B2: Percentage of the total amount: | C2: =IFERROR($C$1/$F$1,"") -> 0.4761904762 | D2: =IFERROR($D$1/$F$1,"") -> 0.09523809524 | E2: =IFERROR($E$1/$F$1,"") -> 0.4285714286 | F2: =IFERROR($F$1/$F$1,"") -> 1
A3: Activity: (click on the blue cells below to indicate your activities, then click on the white cells to select the appropriate expenditure from the list) | B3: Description: (give full details of calculations) | C3: ICH Fund (in US$) | D3: State Party (in US$) | E3: Others (in US$) | F3: Total (in US$) | G3: Additional comments
A4: Ex: Training Workshop on inventories | B4: Sub-total: | C4: =SUBTOTAL(9,C5:C8) -> 1000 | D4: =SUBTOTAL(9,D5:D8) -> 200 | E4: =SUBTOTAL(9,E5:E8) -> 900 | F4: =SUBTOTAL(9,F5:F8) -> 2100
A5: Rent a room / Rental venue | B5: =IF(ISNA(VLOOKUP(A5,data!A:B,2,FALSE)),"",(VLOOKUP(A5,data!A:B,2,FALSE))) -> Rental of a meeting room (capacity 50 persons) for the workshop participants during three days | C5: =IF(ISNA(VLOOKUP(A5,data!A:C,3,FALSE)),"",(VLOOKUP(A5,data!A:C,3,FALSE))) -> 0 | D5: =IF(ISNA(VLOOKUP(A5,data!A:D,4,FALSE)),"",(VLOOKUP(A5,data!A:D,4,FALSE))) -> 0 | E5: =IF(ISNA(VLOOKUP(A5,data!A:E,5,FALSE)),"",(VLOOKUP(A5,data!A:E,5,FALSE))) -> 700 | F5: =SUM(C5:E5) -> 700 | G5: =IF(ISNA(VLOOKUP(A5,data!A:G,6,FALSE)),"",(VLOOKUP(A5,data!A:G,6,FALSE))) -> US$350 provided by ABC Foundation and US$350 provided by DEF Association
A6: Hospitality | B6: =IF(ISNA(VLOOKUP(A6,data!A:B,2,FALSE)),"",(VLOOKUP(A6,data!A:B,2,FALSE))) -> 1 coffee break for each workshop 1000, $ 500 * 2 = $ 1000 | C6: =IF(ISNA(VLOOKUP(A6,data!A:C,3,FALSE)),"",(VLOOKUP(A6,data!A:C,3,FALSE))) -> 1000 | D6: =IF(ISNA(VLOOKUP(A6,data!A:D,4,FALSE)),"",(VLOOKUP(A6,data!A:D,4,FALSE))) -> 0 | E6: =IF(ISNA(VLOOKUP(A6,data!A:E,5,FALSE)),"",(VLOOKUP(A6,data!A:E,5,FALSE))) -> 0 | F6: =SUM(C6:E6) -> 1000 | G6: =IF(ISNA(VLOOKUP(A6,data!A:G,6,FALSE)),"",(VLOOKUP(A6,data!A:G,6,FALSE))) -> Estimation $ 5 / person
A7: Interpretation | B7: =IF(ISNA(VLOOKUP(A7,data!A:B,2,FALSE)),"",(VLOOKUP(A7,data!A:B,2,FALSE))) -> Fees and per diem for two interpretors, US$100 per hour, 2 hours each | C7: =IF(ISNA(VLOOKUP(A7,data!A:C,3,FALSE)),"",(VLOOKUP(A7,data!A:C,3,FALSE))) -> 0 | D7: =IF(ISNA(VLOOKUP(A7,data!A:D,4,FALSE)),"",(VLOOKUP(A7,data!A:D,4,FALSE))) -> 200 | E7: =IF(ISNA(VLOOKUP(A7,data!A:E,5,FALSE)),"",(VLOOKUP(A7,data!A:E,5,FALSE))) -> 200 | F7: =SUM(C7:E7) -> 400 | G7: =IF(ISNA(VLOOKUP(A7,data!A:G,6,FALSE)),"",(VLOOKUP(A7,data!A:G,6,FALSE))) -> the meeting is expected to take two hours maximum time
B8: Sub-total: | C8: =SUBTOTAL(9,C9:C12) -> 0 | D8: =SUBTOTAL(9,D9:D12) -> 0 | E8: =SUBTOTAL(9,E9:E12) -> 0 | F8: =SUBTOTAL(9,F9:F12) -> 0
F9: =SUM(C9:E9) -> 0
F10: =SUM(C10:E10) -> 0
F11: =SUM(C11:E11) -> 0
B12: Sub-total: | C12: =SUBTOTAL(9,C13:C16) -> 0 | D12: =SUBTOTAL(9,D13:D16) -> 0 | E12: =SUBTOTAL(9,E13:E16) -> 0 | F12: =SUBTOTAL(9,F13:F16) -> 0
F13: =SUM(C13:E13) -> 0
F14: =SUM(C14:E14) -> 0
F15: =SUM(C15:E15) -> 0

Sheet ExchRate
A1: OPERATIONAL RATES OF EXCHANGE FOR UNITED NATIONS PROGRAMMES - 2017 | G1: Go to budget
A2: (EQUIVALENT IN UNIT PER US DOLLAR)
A4: Chose Country from the list:
A5: Local currency: | B5: =IF(ISNA(VLOOKUP(B4,ERdata!A:C,3,FALSE)),"-",(VLOOKUP(B4,ERdata!A:C,3,FALSE))) -> -
A6: UN Monthly Rate for 1 US DOLLAR: | B6: =IF(ISNA(VLOOKUP(B4,ERdata!A:D,4,FALSE)),"-",(VLOOKUP(B4,ERdata!A:D,4,FALSE))) -> - | C6: =ERdata!D4 -> 2017-09-01
A8: Amount in Local Currency:
A9: Equivalent in US DOLLAR: | B9: =IFERROR(B8/B6,"-") -> -
A11: *Please note that the conversion rate is that of the month at the time the file is downloaded and will be valid for that month only.

Sheet data (hidden)
C1: Amount requested to the ICH Fund (in USD) | D1: State Party Funds (in USD) | E1: Other sources (in USD) | F1: Comments
A2: 1. Workshop, seminars and meetings | B2: select an item, if applicable
A3: Audio-Visual Equipment | B3: 2 recorders at US$100 / unit | C3: 100 | D3: 100 | E3: 0 | F3: Sony recorder XYZ
A4: Hospitality | B4: 1 coffee break for each workshop 1000, $ 500 * 2 = $ 1000 | C4: 1000 | D4: 0 | E4: 0 | F4: Estimation $ 5 / person
A5: Interpretation | B5: Fees and per diem for two interpretors, US$100 per hour, 2 hours each | C5: 0 | D5: 200 | E5: 200 | F5: the meeting is expected to take two hours maximum time
A6: Rent a room / Rental venue | B6: Rental of a meeting room (capacity 50 persons) for the workshop participants during three days | C6: 0 | D6: 0 | E6: 700 | F6: US$350 provided by ABC Foundation and US$350 provided by DEF Association
A7: Stationery | B7: Paper and pens for the workshop | C7: 500 | D7: 0 | E7: 0
A8: Translation, editing and printing | B8: Translation of training materials: $ 30 / page, 200 pages | C8: 0 | D8: 6000 | E8: 0
A9: Other training costs (specify)
A11: 2. Staff / Advisory services (fees) | B11: select an item, if applicable
A12: Administrative Assistance | B12: $ 500 / month for 6 months | C12: 2000 | D12: 1000 | F12: secretary
A13: Auditor / Evaluator | B13: Fees for two evaluators for 15 days each | C13: 1500 | D13: 0 | E13: 0
A14: Consultant | B14: $ __ / week for__ week(s) | F14: Expert, interpreter, computer assistant, driver
A15: Coordinator | B15: 3 people at $ 30 per day for 10 days to complete the program | C15: 450 | D15: 0 | E15: 450 | F15: Coordination costs financed by the EFG Institute
A16: International / national personnel | B16: $ __ / week for__ week(s)
A17: Facilitator
A18: Researcher
A19: Trainers
A20: Other personnel costs (specify) | B20: Costs for demonstration and performance | C20: 0 | D20: 500
A22: 3. Travel costs | B22: select an item, if applicable
A23: Accommodation | B23: for one project coordinator x $ 40 per day x 5 days | C23: 200 | D23: 0 | E23: 0
A24: Domestic travel | B24: Roundtrip to Village C (3 people) $ 400 / ticket | C24: 0 | D24: 0 | E24: 1200 | F24: Air tickets financed by the Organization HIJ
A25: Fuel
A26: International travel | B26: $ 1,500 / ticket for 2 people | C26: 3000 | D26: 0 | E26: 0
A27: Meals | B27: for one project coordinator x $ 20 per day x 5 days | C27: 100 | D27: 0 | E27: 0
A28: Per diem (lodging, meals and incidentals) | B28: For the coordination team, 3 people x $ 60 per day x 10 days | C28: 1800 | D28: 0 | E28: 0
A29: Visa fees | B29: $ 90 for 3 participants | C29: 270 | D29: 0 | E29: 0
A30: Other travel costs (specify) | B30: Transportation for members of the survey team, 14 people x $ 20 per day x 10 days | C30: 2300 | D30: 500 | E30: 0
A32: 4. Equipment / Material | B32: select an item, if applicable
A33: Audiovisual material | B33: 2 digital cameras at $ 400 / unit | C33: 800 | D33: 0 | E33: 0 | F33: Purchase of two digital cameras for field investigation
A34: Banners & Graphic material
A35: Laptop computer | B35: Laptop samsung XYZ | F35: Computer Purchase for field investigation
A36: Printer | B36: Laser printer KLM
A37: Project vehicles
A38: Recorder
A39: Rental service | B39: Renting a projector | C39: 300
A40: Repair and maintenance services
A41: Sound & multimedia equipment
A42: Other equipment (specify) | B42: Fuel for the coordination team from C to D, 200 liters per team x 3 teams $ 1.4 X1L | C42: 840 | D42: 0 | E42: 0
A44: 5. Contractual services | B44: select an item, if applicable
A45: Contract for meetings
A46: Document production contract | B46: Contract for the production of supporting documents for training | C46: 800 | D46: 200 | F46: cofinancing
A47: Research contract | C47: 2000 | D47: 2000 | E47: 0
A48: Other service contracts (specify) | B48: Production of film
A50: 6. Miscellaneous | B50: select an item, if applicable
A51: Communication costs | B51: phone, fax, internet costs | C51: 500 | D51: 500 | E51: 0
A52: Financial/Bank charges
A53: Postal services | B53: 500 brochures x $3 distribution costs (XYZ) | C53: 0 | D53: 1500 | E53: 0
A54: Provision for currency fluctuations | B54: 3% of the total requested | C54: 500 | D54: 0 | E54: 0
A55: Other (specify)

Sheet model (hidden)
B3: Sub-total: | F3: 0
F4: =SUM(C4:E4) -> 0

Sheet ERdata (hidden)
A1: 7OPERATIONAL RATES OF EXCHANGE FOR UNITED NATIONS PROGRAMMES - 2017
A2: (EQUIVALENT IN UNIT PER US DOLLAR)
A4: COUNTRY | B4: CURRENCY | D4: =LOOKUP(9^9,[1]Exch2017!$A$4:$AB$4) -> 2017-09-01
A5: Afghanistan | B5: Afghani | C5: AFN | D5: =LOOKUP(9^9,[1]Exch2017!A5:IV5) -> 68.34
A6: Albania | B6: Lek | C6: ALL | D6: =LOOKUP(9^9,[1]Exch2017!A6:IV6) -> 111.45
A7: Algeria | B7: Dinar | C7: DZD | D7: =LOOKUP(9^9,[1]Exch2017!A7:IV7) -> 110.0597
A8: Andorra | B8: Euro | C8: EUR | D8: =LOOKUP(9^9,[1]Exch2017!A8:IV8) -> 0.832
A9: Angola | B9: Kwanza Reaj. | C9: AOA | D9: =LOOKUP(9^9,[1]Exch2017!A9:IV9) -> 165.1
A10: Antigua and Barbuda | B10: EC Dollar | C10: XCD | D10: =LOOKUP(9^9,[1]Exch2017!A10:IV10) -> 2.7
A11: Argentina | B11: Peso | C11: ARS | D11: =LOOKUP(9^9,[1]Exch2017!A11:IV11) -> 17.263
A12: Armenia | B12: Drum | C12: AMD | D12: =LOOKUP(9^9,[1]Exch2017!A12:IV12) -> 479.5
A13: Aruba | B13: Aruba Guilder | C13: AWG | D13: =LOOKUP(9^9,[1]Exch2017!A13:IV13) -> 1.79
A14: Australia | B14: Australian Dollar | C14: AUD | D14: =LOOKUP(9^9,[1]Exch2017!A14:IV14) -> 1.255
A15: Austria | B15: Euro | C15: EUR | D15: =LOOKUP(9^9,[1]Exch2017!A15:IV15) -> 0.832
A16: Azerbaijan | B16: New Azerbaijan Manat | C16: AZN | D16: =LOOKUP(9^9,[1]Exch2017!A16:IV16) -> 1.692
A17: Bahamas | B17: Bahamian Dollar | C17: BSD | D17: =LOOKUP(9^9,[1]Exch2017!A17:IV17) -> 1
A18: Bahrain | B18: Dinar | C18: BHD | D18: =LOOKUP(9^9,[1]Exch2017!A18:IV18) -> 0.37708
A19: Bangladesh | B19: Taka | C19: BDT | D19: =LOOKUP(9^9,[1]Exch2017!A19:IV19) -> 81.225
A20: Barbados | B20: Barbados Dollar | C20: BBD | D20: =LOOKUP(9^9,[1]Exch2017!A20:IV20) -> 2
A21: Belarus | B21: New Belarusian Ruble | C21: BYN | D21: =LOOKUP(9^9,[1]Exch2017!A21:IV21) -> 1.9258
A22: Belgium | B22: Euro | C22: EUR | D22: =LOOKUP(9^9,[1]Exch2017!A22:IV22) -> 0.832
A23: Belize | B23: Belize Dollar | C23: BZD | D23: =LOOKUP(9^9,[1]Exch2017!A23:IV23) -> 1.9987
A24: Benin | B24: CFA Franc | C24: XOF | D24: =LOOKUP(9^9,[1]Exch2017!A24:IV24) -> 545.676
A25: Bermuda | B25: Bermuda Dollar | C25: BMD | D25: =LOOKUP(9^9,[1]Exch2017!A25:IV25) -> 1
A26: Bhutan | B26: Ngultrum | C26: BTN | D26: =LOOKUP(9^9,[1]Exch2017!A26:IV26) -> 64.02
A27: Bolivia | B27: Boliviano | C27: BOB | D27: =LOOKUP(9^9,[1]Exch2017!A27:IV27) -> 6.91
A28: Bosnia and Herzegovina | B28: Conv. Mark | C28: BAM | D28: =LOOKUP(9^9,[1]Exch2017!A28:IV28) -> 1.627
A29: Botswana | B29: Pula | C29: BWP | D29: =LOOKUP(9^9,[1]Exch2017!A29:IV29) -> 10.0806
A30: Brazil | B30: Real | C30: BRL | D30: =LOOKUP(9^9,[1]Exch2017!A30:IV30) -> 3.171
A31: Brunei Darussalam | B31: Brunei Dollar | C31: BND | D31: =LOOKUP(9^9,[1]Exch2017!A31:IV31) -> 1.352
A32: Bulgaria | B32: New Leva | C32: BGN | D32: =LOOKUP(9^9,[1]Exch2017!A32:IV32) -> 1.627
A33: Burkina Faso | B33: CFA Franc | C33: XOF | D33: =LOOKUP(9^9,[1]Exch2017!A33:IV33) -> 545.676
A34: Burundi | B34: Burundi Franc | C34: BIF | D34: =LOOKUP(9^9,[1]Exch2017!A34:IV34) -> 1728.064
A35: Cambodia | B35: Riel | C35: KHR | D35: =LOOKUP(9^9,[1]Exch2017!A35:IV35) -> 4080
A36: Cameroon | B36: CFA Franc | C36: XAF | D36: =LOOKUP(9^9,[1]Exch2017!A36:IV36) -> 545.676
A37: Canada | B37: Canadian Dollar | C37: CAD | D37: =LOOKUP(9^9,[1]Exch2017!A37:IV37) -> 1.25
A38: Cape Verde | B38: Escudo | C38: CVE | D38: =LOOKUP(9^9,[1]Exch2017!A38:IV38) -> 91.727
A39: Cayman Islands | B39: Cayman Dollar | C39: KYD | D39: =LOOKUP(9^9,[1]Exch2017!A39:IV39) -> 0.82
A40: Central African Republic | B40: CFA Franc | C40: XAF | D40: =LOOKUP(9^9,[1]Exch2017!A40:IV40) -> 545.676
A41: Chad | B41: CFA Franc | C41: XAF | D41: =LOOKUP(9^9,[1]Exch2017!A41:IV41) -> 545.676
A42: Chile | B42: Peso | C42: CLP | D42: =LOOKUP(9^9,[1]Exch2017!A42:IV42) -> 629
A43: China | B43: Yuan Renminbi | C43: CNY | D43: =LOOKUP(9^9,[1]Exch2017!A43:IV43) -> 6.597
A44: Colombia | B44: Peso | C44: COP | D44: =LOOKUP(9^9,[1]Exch2017!A44:IV44) -> 2943
A45: Comoros | B45: Com. Franc | C45: KMF | D45: =LOOKUP(9^9,[1]Exch2017!A45:IV45) -> 409.257
A46: Congo | B46: CFA Franc | C46: XAF | D46: =LOOKUP(9^9,[1]Exch2017!A46:IV46) -> 545.676
A47: Congo DR (ex Zaire) | B47: Franc Congolais | C47: CDF | D47: =LOOKUP(9^9,[1]Exch2017!A47:IV47) -> 1600.75
A48: Cook Islands | B48: NZ Dollar | C48: NZD | D48: =LOOKUP(9^9,[1]Exch2017!A48:IV48) -> 1.375
A49: Costa Rica | B49: Colones | C49: CRC | D49: =LOOKUP(9^9,[1]Exch2017!A49:IV49) -> 574.29
A50: Cote d'Ivoire | B50: CFA Franc | C50: XOF | D50: =LOOKUP(9^9,[1]Exch2017!A50:IV50) -> 545.676
A51: Croatia | B51: Kuna | C51: HRK | D51: =LOOKUP(9^9,[1]Exch2017!A51:IV51) -> 6.168
A52: Cuba | B52: Pesos | C52: CUP | D52: =LOOKUP(9^9,[1]Exch2017!A52:IV52) -> 1
A53: Cuba (convertible) | B53: Pesos (convertible) | C53: CUC | D53: =LOOKUP(9^9,[1]Exch2017!A53:IV53) -> 0.99
A54: Cyprus | B54: Euro | C54: EUR | D54: =LOOKUP(9^9,[1]Exch2017!A54:IV54) -> 0.832
A55: Czech Republic | B55: Koruna | C55: CZK | D55: =LOOKUP(9^9,[1]Exch2017!A55:IV55) -> 21.75
A56: Denmark | B56: Krone | C56: DKK | D56: =LOOKUP(9^9,[1]Exch2017!A56:IV56) -> 6.189
A57: Djibouti | B57: Djib. Franc | C57: DJF | D57: =LOOKUP(9^9,[1]Exch2017!A57:IV57) -> 177
A58: Dominica | B58: EC Dollar | C58: XCD | D58: =LOOKUP(9^9,[1]Exch2017!A58:IV58) -> 2.7
A59: Dominican Republic | B59: Peso | C59: DOP | D59: =LOOKUP(9^9,[1]Exch2017!A59:IV59) -> 47.295
A60: Ecuador | B60: U.S. Dollar | C60: USD | D60: =LOOKUP(9^9,[1]Exch2017!A60:IV60) -> 1
A61: Egypt | B61: Pound | C61: EGP | D61: =LOOKUP(9^9,[1]Exch2017!A61:IV61) -> 17.658
A62: El Salvador | B62: U.S. Dollar | C62: USD | D62: =LOOKUP(9^9,[1]Exch2017!A62:IV62) -> 1
A63: Equatorial Guinea | B63: CFA Franc | C63: XAF | D63: =LOOKUP(9^9,[1]Exch2017!A63:IV63) -> 545.676
A64: Eritrea | B64: Nafka | C64: ERN | D64: =LOOKUP(9^9,[1]Exch2017!A64:IV64) -> 15
A65: Estonia | B65: Euro | C65: EUR | D65: =LOOKUP(9^9,[1]Exch2017!A65:IV65) -> 0.832
A66: Ethiopia | B66: Birr | C66: ETB | D66: =LOOKUP(9^9,[1]Exch2017!A66:IV66) -> 23.5
A67: European Union | B67: Euro | C67: EUR | D67: =LOOKUP(9^9,[1]Exch2017!A67:IV67) -> 0.832
A68: Fiji | B68: Fiji Dollar | C68: FJD | D68: =LOOKUP(9^9,[1]Exch2017!A68:IV68) -> 1.99
A69: Finland | B69: Euro | C69: EUR | D69: =LOOKUP(9^9,[1]Exch2017!A69:IV69) -> 0.832
A70: France | B70: Euro | C70: EUR | D70: =LOOKUP(9^9,[1]Exch2017!A70:IV70) -> 0.832
A71: French Guiana | B71: Euro | C71: EUR | D71: =LOOKUP(9^9,[1]Exch2017!A71:IV71) -> 0.832
A72: Gabon | B72: CFA Franc | C72: XAF | D72: =LOOKUP(9^9,[1]Exch2017!A72:IV72) -> 545.676
A73: Gambia | B73: Dalasis | C73: GMD | D73: =LOOKUP(9^9,[1]Exch2017!A73:IV73) -> 47.11
A74: Georgia | B74: Lari | C74: GEL | D74: =LOOKUP(9^9,[1]Exch2017!A74:IV74) -> 2.395
A75: Germany | B75: Euro | C75: EUR | D75: =LOOKUP(9^9,[1]Exch2017!A75:IV75) -> 0.832
A76: Ghana | B76: New Cedi | C76: GHS | D76: =LOOKUP(9^9,[1]Exch2017!A76:IV76) -> 4.425
A77: Greece | B77: Euro | C77: EUR | D77: =LOOKUP(9^9,[1]Exch2017!A77:IV77) -> 0.832
A78: Grenada | B78: EC Dollar | C78: XCD | D78: =LOOKUP(9^9,[1]Exch2017!A78:IV78) -> 2.7
A79: Guadeloupe | B79: Euro | C79: EUR | D79: =LOOKUP(9^9,[1]Exch2017!A79:IV79) -> 0.832
A80: Guatemala | B80: Quetzale | C80: GTQ | D80: =LOOKUP(9^9,[1]Exch2017!A80:IV80) -> 7.2858
A81: Guinea | B81: Franc Guinéen | C81: GNF | D81: =LOOKUP(9^9,[1]Exch2017!A81:IV81) -> 8970
A82: Guinea-Bissau | B82: CFA Franc | C82: XOF | D82: =LOOKUP(9^9,[1]Exch2017!A82:IV82) -> 545.676
A83: Guyana | B83: Guyana Dollar | C83: GYD | D83: =LOOKUP(9^9,[1]Exch2017!A83:IV83) -> 207.2
A84: Haiti | B84: Gourde | C84: HTG | D84: =LOOKUP(9^9,[1]Exch2017!A84:IV84) -> 63.2093
A85: Honduras | B85: Lempira | C85: HNL | D85: =LOOKUP(9^9,[1]Exch2017!A85:IV85) -> 23.3778
A86: Hong Kong | B86: H. K. Dollar | C86: HKD | D86: =LOOKUP(9^9,[1]Exch2017!A86:IV86) -> 7.824
A87: Hungary | B87: Forint | C87: HUF | D87: =LOOKUP(9^9,[1]Exch2017!A87:IV87) -> 254.12
A88: Iceland | B88: Krona | C88: ISK | D88: =LOOKUP(9^9,[1]Exch2017!A88:IV88) -> 104.58
A89: India | B89: Rupee | C89: INR | D89: =LOOKUP(9^9,[1]Exch2017!A89:IV89) -> 64.02
A90: Indonesia | B90: Rupiah | C90: IDR | D90: =LOOKUP(9^9,[1]Exch2017!A90:IV90) -> 13340
A91: Iran | B91: Rial | C91: IRR | D91: =LOOKUP(9^9,[1]Exch2017!A91:IV91) -> 37268
A92: Iraq | B92: Dinar | C92: IQD | D92: =LOOKUP(9^9,[1]Exch2017!A92:IV92) -> 1170
A93: Ireland | B93: Euro | C93: EUR | D93: =LOOKUP(9^9,[1]Exch2017!A93:IV93) -> 0.832
A94: Israel | B94: New Shekel | C94: ILS | D94: =LOOKUP(9^9,[1]Exch2017!A94:IV94) -> 3.578
A95: Italy | B95: Euro | C95: EUR | D95: =LOOKUP(9^9,[1]Exch2017!A95:IV95) -> 0.832
A96: Jamaica | B96: Jamaican Dollar | C96: JMD | D96: =LOOKUP(9^9,[1]Exch2017!A96:IV96) -> 127.9521
A97: Japan | B97: Yen | C97: JPY | D97: =LOOKUP(9^9,[1]Exch2017!A97:IV97) -> 108.67
A98: Jordan | B98: Dinar | C98: JOD | D98: =LOOKUP(9^9,[1]Exch2017!A98:IV98) -> 0.708
A99: Kazakhstan | B99: Tenge | C99: KZT | D99: =LOOKUP(9^9,[1]Exch2017!A99:IV99) -> 335.37
A100: Kenya | B100: Shilling | C100: KES | D100: =LOOKUP(9^9,[1]Exch2017!A100:IV100) -> 103.21
A101: Kiribati | B101: Australian Dollar | C101: AUD | D101: =LOOKUP(9^9,[1]Exch2017!A101:IV101) -> 1.255
A102: Korea, Dem. People's Republic | B102: Won | C102: KPW | D102: =LOOKUP(9^9,[1]Exch2017!A102:IV102) -> 105.29
A103: Korea, Rep. Of | B103: Won | C103: KRW | D103: =LOOKUP(9^9,[1]Exch2017!A103:IV103) -> 1126.15
A104: Kuwait | B104: Dinar | C104: KWD | D104: =LOOKUP(9^9,[1]Exch2017!A104:IV104) -> 0.301
A105: Kyrgyzstan | B105: Som | C105: KGS | D105: =LOOKUP(9^9,[1]Exch2017!A105:IV105) -> 68.35
A106: Lao P.D.R. | B106: Kip | C106: LAK | D106: =LOOKUP(9^9,[1]Exch2017!A106:IV106) -> 8297.5
A107: Latvia | B107: Latvian Lat | C107: EUR | D107: =LOOKUP(9^9,[1]Exch2017!A107:IV107) -> 0.832
A108: Lebanon | B108: Pound | C108: LBP | D108: =LOOKUP(9^9,[1]Exch2017!A108:IV108) -> 1507.5
A109: Lesotho | B109: Maloti | C109: LSL | D109: =LOOKUP(9^9,[1]Exch2017!A109:IV109) -> 12.99
A110: Liberia | B110: Liberian Dollar | C110: LRD | D110: =LOOKUP(9^9,[1]Exch2017!A110:IV110) -> 114.67
A111: Libyan Arab Jamahiriya | B111: Dinar | C111: LYD | D111: =LOOKUP(9^9,[1]Exch2017!A111:IV111) -> 1.368
A112: Liechtenstein | B112: Swiss Franc | C112: CHF | D112: =LOOKUP(9^9,[1]Exch2017!A112:IV112) -> 0.946
A113: Lithuania | B113: Lita | C113: EUR | D113: =LOOKUP(9^9,[1]Exch2017!A113:IV113) -> 0.832
A114: Luxembourg | B114: Euro | C114: EUR | D114: =LOOKUP(9^9,[1]Exch2017!A114:IV114) -> 0.832
A115: Macao | B115: Pataca | C115: MOP | D115: =LOOKUP(9^9,[1]Exch2017!A115:IV115) -> 8.059
A116: Macedonia, the former Republic of Yugoslavia | B116: Dinar | C116: MKD | D116: =LOOKUP(9^9,[1]Exch2017!A116:IV116) -> 51.5126
A117: Madagascar | B117: Malagasy Ariary | C117: MGA | D117: =LOOKUP(9^9,[1]Exch2017!A117:IV117) -> 2951.76
A118: Malawi | B118: Kwacha | C118: MWK | D118: =LOOKUP(9^9,[1]Exch2017!A118:IV118) -> 727
A119: Malaysia | B119: Ringgit | C119: MYR | D119: =LOOKUP(9^9,[1]Exch2017!A119:IV119) -> 4.2677
A120: Maldives, Rep. of | B120: Rufiyaa | C120: MVR | D120: =LOOKUP(9^9,[1]Exch2017!A120:IV120) -> 15
A121: Mali | B121: CFA Franc | C121: XOF | D121: =LOOKUP(9^9,[1]Exch2017!A121:IV121) -> 545.676
A122: Malta | B122: Euro | C122: EUR | D122: =LOOKUP(9^9,[1]Exch2017!A122:IV122) -> 0.832
A123: Marshall Islands | B123: US Dollar | C123: USD | D123: =LOOKUP(9^9,[1]Exch2017!A123:IV123) -> 1
A124: Martinique | B124: Euro | C124: EUR | D124: =LOOKUP(9^9,[1]Exch2017!A124:IV124) -> 0.832
A125: Mauritania | B125: Ouguiya | C125: MRO | D125: =LOOKUP(9^9,[1]Exch2017!A125:IV125) -> 356.28
A126: Mauritius | B126: Rupee | C126: MUR | D126: =LOOKUP(9^9,[1]Exch2017!A126:IV126) -> 32.6095
A127: Mexico | B127: Peso | C127: MXN | D127: =LOOKUP(9^9,[1]Exch2017!A127:IV127) -> 17.87
A128: Moldova,Republic of | B128: Moldovan Lei | C128: MDL | D128: =LOOKUP(9^9,[1]Exch2017!A128:IV128) -> 17.77
A129: Monaco | B129: Euro | C129: EUR | D129: =LOOKUP(9^9,[1]Exch2017!A129:IV129) -> 0.832
A130: Mongolia | B130: Tughrik | C130: MNT | D130: =LOOKUP(9^9,[1]Exch2017!A130:IV130) -> 2439
A131: Morocco | B131: Dirham | C131: MAD | D131: =LOOKUP(9^9,[1]Exch2017!A131:IV131) -> 9.3067
A132: Mozambique | B132: New Metical | C132: MZN | D132: =LOOKUP(9^9,[1]Exch2017!A132:IV132) -> 61.4
A133: Myanmar | B133: Kyat | C133: MMK | D133: =LOOKUP(9^9,[1]Exch2017!A133:IV133) -> 1360
A134: Namibia | B134: Namibian Dollar | C134: NAD | D134: =LOOKUP(9^9,[1]Exch2017!A134:IV134) -> 12.99
A135: Nauru | B135: Australian Dollar | C135: AUD | D135: =LOOKUP(9^9,[1]Exch2017!A135:IV135) -> 1.255
A136: Nepal | B136: Rupee | C136: NPR | D136: =LOOKUP(9^9,[1]Exch2017!A136:IV136) -> 102.432
A137: Netherlands | B137: Euro | C137: EUR | D137: =LOOKUP(9^9,[1]Exch2017!A137:IV137) -> 0.832
A138: Netherlands Antilles | B138: Guilder | C138: ANG | D138: =LOOKUP(9^9,[1]Exch2017!A138:IV138) -> 1.79
A139: New Caledonia | B139: CFP Franc | C139: XPF | D139: =LOOKUP(9^9,[1]Exch2017!A139:IV139) -> 99.27
A140: New Zealand | B140: NZ Dollar | C140: NZD | D140: =LOOKUP(9^9,[1]Exch2017!A140:IV140) -> 1.375
A141: Nicaragua | B141: Cordoba Oro | C141: NIO | D141: =LOOKUP(9^9,[1]Exch2017!A141:IV141) -> 30.2848
A142: Niger | B142: CFA Franc | C142: XOF | D142: =LOOKUP(9^9,[1]Exch2017!A142:IV142) -> 545.676
A143: Nigeria | B143: Naira | C143: NGN | D143: =LOOKUP(9^9,[1]Exch2017!A143:IV143) -> 355.99
A144: Niue | B144: NZ Dollar | C144: NZD | D144: =LOOKUP(9^9,[1]Exch2017!A144:IV144) -> 1.375
A145: Norway | B145: Krone | C145: NOK | D145: =LOOKUP(9^9,[1]Exch2017!A145:IV145) -> 7.734
A146: Oman | B146: Oman Riyal | C146: OMR | D146: =LOOKUP(9^9,[1]Exch2017!A146:IV146) -> 0.385
A147: Pakistan | B147: Rupee | C147: PKR | D147: =LOOKUP(9^9,[1]Exch2017!A147:IV147) -> 105.4
A148: Panama | B148: Balboa | C148: PAB | D148: =LOOKUP(9^9,[1]Exch2017!A148:IV148) -> 1
A149: Papua New Guinea | B149: Kina | C149: PGK | D149: =LOOKUP(9^9,[1]Exch2017!A149:IV149) -> 3.18
A150: Paraguay | B150: Guaranie | C150: PYG | D150: =LOOKUP(9^9,[1]Exch2017!A150:IV150) -> 5646
A151: Peru | B151: Nuevo Sol | C151: PEN | D151: =LOOKUP(9^9,[1]Exch2017!A151:IV151) -> 3.238
A152: Philippines | B152: Peso | C152: PHP | D152: =LOOKUP(9^9,[1]Exch2017!A152:IV152) -> 50.999
A153: Poland | B153: Zloty | C153: PLN | D153: =LOOKUP(9^9,[1]Exch2017!A153:IV153) -> 3.5517
A154: Portugal | B154: Euro | C154: EUR | D154: =LOOKUP(9^9,[1]Exch2017!A154:IV154) -> 0.832
A155: Qatar | B155: Qatar Riyal | C155: QAR | D155: =LOOKUP(9^9,[1]Exch2017!A155:IV155) -> 3.68
A156: Romania | B156: New Leu | C156: RON | D156: =LOOKUP(9^9,[1]Exch2017!A156:IV156) -> 3.825
A157: Russian Federation | B157: Rouble | C157: RUB | D157: =LOOKUP(9^9,[1]Exch2017!A157:IV157) -> 58.87
A158: Rwanda | B158: Rwanda Franc | C158: RWF | D158: =LOOKUP(9^9,[1]Exch2017!A158:IV158) -> 834.559
A159: Saint Helena | B159: St.Helena Pound | C159: SHP | D159: =LOOKUP(9^9,[1]Exch2017!A159:IV159) -> 0.773
A160: Saint Kitt and Nevis | B160: EC Dollar | C160: XCD | D160: =LOOKUP(9^9,[1]Exch2017!A160:IV160) -> 2.7
A161: Saint Lucia | B161: EC Dollar | C161: XCD | D161: =LOOKUP(9^9,[1]Exch2017!A161:IV161) -> 2.7
A162: SaintVincent&Grenadines | B162: EC Dollar | C162: XCD | D162: =LOOKUP(9^9,[1]Exch2017!A162:IV162) -> 2.7
A163: Samoa | B163: Tala | C163: WST | D163: =LOOKUP(9^9,[1]Exch2017!A163:IV163) -> 2.424
A164: San Marino | B164: Euro | C164: EUR | D164: =LOOKUP(9^9,[1]Exch2017!A164:IV164) -> 0.832
A165: Sao Tome Principe | B165: Dobra | C165: STD | D165: =LOOKUP(9^9,[1]Exch2017!A165:IV165) -> 20832.368
A166: Saudi Arabia | B166: Riyals | C166: SAR | D166: =LOOKUP(9^9,[1]Exch2017!A166:IV166) -> 3.75
A167: Senegal | B167: CFA Franc | C167: XOF | D167: =LOOKUP(9^9,[1]Exch2017!A167:IV167) -> 545.676
A168: Serbia | B168: Dinar | C168: RSD | D168: =LOOKUP(9^9,[1]Exch2017!A168:IV168) -> 101.343
A169: Seychelles | B169: Rupee | C169: SCR | D169: =LOOKUP(9^9,[1]Exch2017!A169:IV169) -> 13.532
A170: Sierra Leone | B170: Leone | C170: SLL | D170: =LOOKUP(9^9,[1]Exch2017!A170:IV170) -> 7250
A171: Singapore | B171: Singapore Dollar | C171: SGD | D171: =LOOKUP(9^9,[1]Exch2017!A171:IV171) -> 1.352
A172: Slovak Republic | B172: Sl. Koruna | C172: EUR | D172: =LOOKUP(9^9,[1]Exch2017!A172:IV172) -> 0.832
A173: Slovenia | B173: Euro | C173: EUR | D173: =LOOKUP(9^9,[1]Exch2017!A173:IV173) -> 0.832
A174: Solomon Islands | B174: S. Is. Dollar | C174: SBD | D174: =LOOKUP(9^9,[1]Exch2017!A174:IV174) -> 7.8186
A175: Somalia | B175: Shilling | C175: SOS | D175: =LOOKUP(9^9,[1]Exch2017!A175:IV175) -> 24300
A176: South Africa | B176: Rand | C176: ZAR | D176: =LOOKUP(9^9,[1]Exch2017!A176:IV176) -> 12.99
A177: South Sudan | B177: South Sudan Pound | C177: SSP | D177: =LOOKUP(9^9,[1]Exch2017!A177:IV177) -> 117.448
A178: Spain | B178: Euro | C178: EUR | D178: =LOOKUP(9^9,[1]Exch2017!A178:IV178) -> 0.832
A179: Sri Lanka | B179: Rupee | C179: LKR | D179: =LOOKUP(9^9,[1]Exch2017!A179:IV179) -> 152.85
A180: Sudan | B180: New Sudanese Pound | C180: SDG | D180: =LOOKUP(9^9,[1]Exch2017!A180:IV180) -> 17.985
A181: Suriname | B181: Suriname Dollar | C181: SRD | D181: =LOOKUP(9^9,[1]Exch2017!A181:IV181) -> 7.37
A182: Swaziland | B182: Emalangeni | C182: SZL | D182: =LOOKUP(9^9,[1]Exch2017!A182:IV182) -> 12.99
A183: Sweden | B183: Kronor | C183: SEK | D183: =LOOKUP(9^9,[1]Exch2017!A183:IV183) -> 7.928
A184: Switzerland | B184: Swiss Franc | C184: CHF | D184: =LOOKUP(9^9,[1]Exch2017!A184:IV184) -> 0.946
A185: Syrian Arab Republic | B185: Pound | C185: SYP | D185: =LOOKUP(9^9,[1]Exch2017!A185:IV185) -> 514.85
A186: Tajikistan | B186: Tajik Somoni | C186: TJS | D186: =LOOKUP(9^9,[1]Exch2017!A186:IV186) -> 8.8063
A187: Tanzania, United Rep. | B187: Shilling | C187: TZS | D187: =LOOKUP(9^9,[1]Exch2017!A187:IV187) -> 2239.95
A188: Thailand | B188: Baht | C188: THB | D188: =LOOKUP(9^9,[1]Exch2017!A188:IV188) -> 33.17
A189: Togo | B189: CFA Franc | C189: XOF | D189: =LOOKUP(9^9,[1]Exch2017!A189:IV189) -> 545.676
A190: Tonga | B190: Pa'anga | C190: TOP | D190: =LOOKUP(9^9,[1]Exch2017!A190:IV190) -> 2.1409
A191: Trinidad and Tobago | B191: T.& T. Dollar | C191: TTD | D191: =LOOKUP(9^9,[1]Exch2017!A191:IV191) -> 6.7497
A192: Tunisia | B192: Dinar | C192: TND | D192: =LOOKUP(9^9,[1]Exch2017!A192:IV192) -> 2.4432
A193: Turkey | B193: (New) Turkish Lira | C193: TRY | D193: =LOOKUP(9^9,[1]Exch2017!A193:IV193) -> 3.4431
A194: Turkmenistan | B194: T. Manat | C194: TMT | D194: =LOOKUP(9^9,[1]Exch2017!A194:IV194) -> 3.5
A195: Tuvalu | B195: Australian Dollar | C195: AUD | D195: =LOOKUP(9^9,[1]Exch2017!A195:IV195) -> 1.255
A196: Uganda | B196: Shilling | C196: UGX | D196: =LOOKUP(9^9,[1]Exch2017!A196:IV196) -> 3601.21
A197: Ukraine | B197: Hryvna | C197: UAH | D197: =LOOKUP(9^9,[1]Exch2017!A197:IV197) -> 25.55
A198: United Arab Emirates | B198: Dirham | C198: AED | D198: =LOOKUP(9^9,[1]Exch2017!A198:IV198) -> 3.673
A199: United Kingdom | B199: Pound | C199: GBP | D199: =LOOKUP(9^9,[1]Exch2017!A199:IV199) -> 0.773
A200: U.S.A. | B200: Dollar | C200: USD | D200: =LOOKUP(9^9,[1]Exch2017!A200:IV200) -> 1
A201: Uruguay | B201: Peso | C201: UYU | D201: =LOOKUP(9^9,[1]Exch2017!A201:IV201) -> 28.785
... 9 more rows
